fUSD/lending_fUSD_20240318
["ID","MTS","AMOUNT","RATE_DAILY","PERIOD"]
[319458441,1710785447774,-557.55283338,0.00021917,2]
[319458442,1710785447783,-1344.99,0.00021917,2]
[319458443,1710785447792,-500.0,0.00021917,2]
[319458444,1710785447802,-500.0,0.00021917,2]
[319458445,1710785447812,-500.0,0.00021917,2]
[319458446,1710785447821,-500.0,0.00021917,2]
[319458447,1710785447830,-235.53305349,0.00021917,2]
[319458448,1710785447858,-264.46694651,0.00021917,2]
[319458449,1710785447867,-354.68126349,0.00021917,2]
[319458450,1710785447879,-270.81873651,0.00021917,2]
[319458451,1710785447888,-531.29,0.00021917,2]
[319458452,1710785447897,-500.0,0.00021917,2]
[319458453,1710785447906,-500.0,0.00021917,2]
[319458454,1710785447915,-500.0,0.00021917,2]
[319458455,1710785447924,-500.0,0.00021917,2]
[319458456,1710785447933,-500.0,0.00021917,2]
[319458457,1710785447941,-70.0668474,0.00021917,2]
[319458458,1710785447973,-342.8767187,0.00021917,2]
[319458459,1710785533591,158.0,0.0001,2]
[319458460,1710785533622,1759.39324626,0.0001,2]
[319458473,1710785746230,1081.70297846,0.0001,2]
[319458474,1710785747874,5636.86167082,0.0001,2]
[319458475,1710785748283,286.48157523,0.0001,2]
[319458478,1710785995388,12500.0,0.000232,100]
[319458479,1710786004325,7500.0,0.000232,100]
[319458480,1710786004352,5000.0,0.000232,100]
[319458481,1710786272443,-559.51794619,0.00014083,2]
[319458482,1710786272465,-1087.05455381,0.00014084,2]
[319458483,1710786332216,-451.21497687,0.00013998,2]
[319458484,1710786332235,-155.0,0.00013999,2]
[319458485,1710786332255,-13775.47315333,0.00013999,5]
[319458486,1710786332273,-3000.0,0.00014,2]
[319458487,1710786332296,-158.13659788,0.00014286,2]
[319458488,1710786332317,-158.13659784,0.0001497,2]
[319458489,1710786332336,-150.0,0.00014998,2]
[319458490,1710786332355,-321.6642452,0.00015,2]
[319458491,1710786332375,-470.98,0.00015,2]
[319458492,1710786332394,-3969.09637207,0.00015,2]
[319458493,1710786332412,-10431.17164274,0.00015,2]
[319458494,1710786332432,-154.76,0.00015422,2]
[319458495,1710786332451,-158.13659784,0.00015654,2]
[319458496,1710786332471,-158.13659784,0.00016339,2]
[319458497,1710786332490,-1785.53618659,0.0001636,2]
[319458498,1710786332509,-210.0,0.00016498,2]
[319458499,1710786332528,-158.13659784,0.00017023,2]
[319458500,1710786332549,-371.71,0.00017507,2]
[319458501,1710786332568,-158.13659784,0.00017707,2]
[319458502,1710786332587,-158.13659784,0.00018391,2]
[319458503,1710786332605,-652.43,0.00018488,2]
[319458504,1710786332625,-158.13659784,0.00019075,2]
[319458505,1710786332646,-220.86,0.00019312,10]
[319458506,1710786332666,-250.0,0.00019372,2]
[319458507,1710786332686,-2000.0,0.00019387,2]
[319458508,1710786332704,-200.0,0.00019396,2]
[319458509,1710786332723,-600.0,0.0001969,2]
[319458510,1710786332742,-158.13659784,0.00019759,2]
[319458511,1710786332762,-371.71,0.00019771,2]
[319458512,1710786332782,-220.86,0.00019785,10]
[319458513,1710786332802,-200.0,0.00019786,2]
[319458514,1710786332822,-173.76,0.00019838,2]
[319458515,1710786332841,-962.02754223,0.00019899,2]
[319458516,1710786332860,-4164.4,0.00019909,2]
[319458517,1710786332879,-155.96,0.00019916,2]
[319458518,1710786332899,-500.0,0.00019968,2]
[319458519,1710786332920,-165.27,0.00019995,2]
[319458520,1710786332939,-166.55,0.00020019,2]
[319458521,1710786332958,-166.98,0.00020035,2]
[319458522,1710786332979,-155.96,0.00020124,2]
[319458523,1710786332999,-4962.03070031,0.00020161,2]
[319458524,1710786428098,-284.43059665,0.00020062,2]
[319458525,1710786428122,-24046.65360992,0.00020161,2]
[319458526,1710786429122,-1471.69270163,0.00020161,2]
[319458527,1710786429144,-14276.79154327,0.00020162,2]
[319458528,1710786429172,-1000.0,0.00020163,2]
[319458529,1710786429194,-220.86,0.00020258,10]
[319458530,1710786429217,-500.0,0.00020435,2]
[319458531,1710786429240,-158.13659784,0.00020444,2]
[319458532,1710786429265,-232.24,0.00020454,2]
[319458533,1710786429290,-155.96,0.00020569,2]
[319458534,1710786429311,-220.86,0.00020731,10]
[319458535,1710786429334,-7177.02151288,0.00020818,5]
[319458536,1710786429354,-1468.14899695,0.00020819,2]
[319458537,1710786429377,-178.29,0.00020917,2]
[319458538,1710786429399,-260.53,0.00020917,2]
[319458539,1710786429770,-155.96,0.00020927,2]
[319458540,1710786429798,-1363.0,0.00020949,2]
[319458541,1710786429825,-150.0,0.00020965,2]
[319458542,1710786429847,-150.0,0.00020965,2]
[319458543,1710786429871,-150.0,0.00020965,2]
[319458544,1710786429892,-854.631359,0.00021,2]
[319458545,1710786429912,-3843.5,0.00021,2]
[319458546,1710786429934,-260.53,0.00021054,2]
[319458547,1710786429956,-158.13659784,0.00021128,2]
[319458548,1710786429979,-959.0,0.0002117,2]
[319458549,1710786429999,-1378.0,0.0002117,2]
[319458550,1710786430020,-2559.0,0.0002117,2]
[319458551,1710786430040,-536.0,0.0002117,2]
[319458552,1710786430063,-278.0,0.0002117,2]
[319458553,1710786430083,-603.0,0.0002117,2]
[319458554,1710786430106,-1263.0,0.0002117,2]
[319458555,1710786430130,-432.0,0.0002117,2]
[319458556,1710786430160,-1250.0,0.0002117,2]
[319458557,1710786430185,-2630.013,0.0002117,2]
[319458558,1710786430206,-1631.826,0.0002117,2]
[319458559,1710786430227,-1699.96,0.0002117,2]
[319458560,1710786430248,-1104.32,0.00021178,2]
[319458561,1710786430269,-150.66,0.00021178,2]
[319458562,1710786430292,-300.0,0.00021178,2]
[319458563,1710786430322,-295.43,0.00021178,2]
[319458564,1710786430344,-346.82,0.00021178,2]
[319458565,1710786430368,-260.53,0.00021191,2]
[319458566,1710786430390,-220.86,0.00021205,10]
[319458567,1710786430412,-439.0,0.0002125,2]
[319458568,1710786430434,-155.96,0.00021284,2]
[319458569,1710786430456,-260.53,0.00021328,2]
[319458570,1710786430478,-154.0,0.0002137,2]
[319458571,1710786430501,-166.98,0.00021437,2]
[319458572,1710786430523,-178.29,0.00021465,2]
[319458573,1710786430545,-260.53,0.00021465,2]
[319458574,1710786430568,-346.82,0.00021484,2]
[319458575,1710786430589,-1000.0,0.000215,2]
[319458576,1710786430610,-300.0,0.00021514,2]
[319458577,1710786430635,-150.0,0.00021514,2]
[319458578,1710786430657,-260.53,0.00021602,2]
[319458579,1710786430680,-8477.80317481,0.00021617,2]
[319458580,1710786430705,-155.96,0.00021641,2]
[319458581,1710786430728,-1000.0,0.000217,2]
[319458582,1710786430752,-500.0,0.000217,2]
[319458583,1710786430774,-5252.71186823,0.00021715,2]
[319458584,1710786430794,-406.0405,0.00021716,2]
[319458585,1710786430815,-2500.0,0.00021716,2]
[319458586,1710786430835,-216.90709953,0.00021716,2]
[319458587,1710786430855,-32862.5075,0.00021717,2]
[319458588,1710786430879,-374.2301507,0.00021717,2]
[319458589,1710786430901,-150.0,0.00021726,2]
[319458590,1710786430925,-260.53,0.00021739,2]
[319458591,1710786430947,-180.0,0.00021795,2]
[319458592,1710786430972,-162.81989692,0.000218,2]
[319458593,1710786430997,-162.81989692,0.000218,2]
[319458594,1710786431019,-162.81989692,0.00021801,2]
[319458595,1710786431039,-174.51169889,0.00021812,2]
[319458596,1710786431060,-158.13659784,0.00021812,2]
[319458597,1710786431082,-184.65274304,0.00021812,2]
[319458598,1710786431104,-395.87986493,0.00021814,2]
[319458599,1710786431127,-999.03912351,0.00021814,2]
[319458600,1710786431149,-3965.5729381,0.00021814,2]
[319458601,1710786431170,-235.75229677,0.00021814,2]
[319458602,1710786431190,-4851.51723997,0.00021814,2]
[319458603,1710786431211,-451.62673576,0.00021814,2]
[319458604,1710786431232,-30270.8544912,0.00021814,3]
[319458605,1710786441156,-1000.0,0.00020159,2]
[319458606,1710786441178,-11333.26936624,0.00020161,4]
[319458607,1710786441201,-520.0,0.0002044,2]
[319458608,1710786441222,-346.82,0.00021078,2]
[319458609,1710786441244,-9492.50935357,0.00021814,3]
[319458610,1710786443098,-16773.681988,0.00021814,3]
[319458611,1710786443118,-160.02630708,0.00021815,2]
[319458612,1710786443146,-184.88529752,0.00021815,2]
[319458613,1710786443167,-14817.38482796,0.00021816,2]
[319458614,1710786443199,-6716.44909398,0.00021816,2]
[319458630,1710786631486,-1000.0,0.00020059,2]
[319458631,1710786631496,-7177.02151288,0.0002006,5]
[319458632,1710786631506,-1180.7507,0.00020061,2]
[319458633,1710786631517,-152.86750514,0.00020418,2]
[319458634,1710786631527,-152.86750514,0.00020418,2]
[319458635,1710786631536,-326.21,0.00020898,2]
[319458636,1710786631546,-1140.33493269,0.0002138,2]
[319458637,1710786631556,-1132.14028528,0.0002138,2]
[319458638,1710786631565,-7194.2402,0.00021617,2]
[319458639,1710786631575,-171.61,0.000217,2]
[319458640,1710786631585,-2500.0,0.00021716,2]
[319458641,1710786631596,-2465.6422,0.00021716,2]
[319458642,1710786631606,-497.88502932,0.00021716,2]
[319458643,1710786631615,-152.91757532,0.000218,2]
[319458644,1710786631625,-162.81989692,0.000218,2]
[319458645,1710786631635,-349.28147408,0.000218,2]
[319458646,1710786631645,-158.82495527,0.000218,2]
[319458647,1710786631655,-69021.07036695,0.00021816,2]
[319458648,1710786634471,-661.68277074,0.00021816,2]
[319458649,1710786634482,-148331.17384037,0.00021816,2]
[319458650,1710786634492,-55619.6243428,0.00021816,2]
[319458651,1710786635548,-150.0,0.00021698,2]
[319458652,1710786635559,-11506.7921572,0.00021816,2]
[319458653,1710786635569,-11333.26936624,0.00021816,4]
[319458654,1710786635579,-331.96395506,0.00021816,7]
[319458655,1710786635589,-2198.08460813,0.00021816,2]
[319458656,1710786635599,-2000.0,0.00021817,2]
[319458657,1710786635609,-923.5931,0.00021817,2]
[319458658,1710786635619,-12371.69132285,0.00021817,2]
[319458659,1710786635628,-23274.1929,0.00021817,2]
[319458660,1710786635638,-318.5286,0.00021817,2]
[319458661,1710786635648,-287.1535,0.00021817,2]
[319458662,1710786635658,-613.17666463,0.00021817,2]
[319458675,1710786635777,-750.0,0.00021817,2]
[319458677,1710786635791,-1342.0,0.00021817,2]
[319458681,1710786635826,-2294.82333537,0.00021817,2]
[319458683,1710786635836,-804.57108196,0.00021817,2]
[319458685,1710786635845,-1163.88287883,0.00021817,2]
[319458687,1710786635856,-5107.88606631,0.00021817,2]
[319458689,1710786635866,-3652.9726313,0.00021872,2]
[319458691,1710786635876,-328.47402425,0.00021872,2]
[319458693,1710786635885,-175.37399262,0.00021872,4]
[319458695,1710786635895,-485.20500334,0.00021872,2]
[319458697,1710786635904,-260.53,0.00021876,2]
[319458699,1710786635914,-181.97877782,0.00021887,2]
[319458701,1710786635924,-7389.47016804,0.00021891,5]
[319458703,1710786635934,-162.81989692,0.00021891,2]
[319458705,1710786635944,-270.7595229,0.00021899,2]
[319458707,1710786635954,-500.0,0.00021899,2]
[319458710,1710786635965,-5301.68012034,0.000219,3]
[319458713,1710786635989,-330.62276272,0.000219,3]
[319458767,1710786637752,-701.48469893,0.000219,3]
[319458768,1710786637775,-13666.21241801,0.000219,3]
[319458769,1710786637786,-54669.35,0.000219,3]
[319458770,1710786637796,-50000.0,0.000219,3]
[319458771,1710786637806,-285603.3137092,0.000219,2]
[319458772,1710786637817,-271.35638673,0.000219,2]
[319458773,1710786637912,-1505.52984001,0.000219,2]
[319458774,1710786637923,-1143.64142336,0.000219,2]
[319458775,1710786637934,-14527.96682352,0.000219,2]
[319458780,1710786638282,-85916.34056786,0.000219,2]
[319458781,1710786638293,-30972.71744983,0.000219,2]
[319458782,1710786638307,-11099.46367502,0.000219,2]
[319458783,1710786638333,-567.47373075,0.000219,2]
[319458784,1710786638345,-5612.09,0.000219,2]
[319458785,1710786638356,-3858.14264008,0.000219,2]
[319458794,1710786639499,-558.85781092,0.00021806,2]
[319458796,1710786639509,-10710.18772043,0.000219,2]
[319458813,1710786639654,-4676.72811112,0.000219,2]
[319458815,1710786639667,-2431.027419,0.000219,2]
[319458817,1710786639681,-6464.01549177,0.000219,2]
[319458820,1710786639694,-23050.96351439,0.000219,2]
[319458821,1710786639706,-3611.60799999,0.000219,2]
[319458822,1710786639723,-2373.55112471,0.000219,2]
[319458823,1710786639773,-256.45118973,0.00021806,2]
[319458824,1710786639784,-302.40662119,0.00021806,2]
[319458825,1710786639794,-1986.55762352,0.000219,2]
[319458826,1710786639863,-6315.3454475,0.000219,2]
[319458827,1710786639893,-511.999955,0.000219,2]
[319458828,1710786639936,-16179.78073947,0.000219,2]
[319458829,1710786639948,-85721.17502049,0.000219,2]
[319458834,1710786642471,-263.50586845,0.00021899,2]
[319458836,1710786642481,-104.99413155,0.00021899,2]
[319458857,1710786642668,-575.90129891,0.00021899,2]
[319458859,1710786642677,-268.54715807,0.00021899,2]
[319458861,1710786642686,-272.47200459,0.00021899,2]
[319458863,1710786642695,-2992.92608764,0.000219,2]
[319458866,1710786642706,-2556.56890496,0.000219,2]
[319458867,1710786642717,-31469.7546,0.000219,2]
[319458868,1710786642730,-3911.64157639,0.000219,2]
[319458869,1710786642742,-5962.04506,0.000219,2]
[319458870,1710786642755,-31147.28458204,0.000219,2]
[319458871,1710786642769,-2000.0,0.000219,2]
[319458872,1710786642779,-1000.0,0.000219,2]
[319458873,1710786642788,-2000.0,0.000219,2]
[319458874,1710786642798,-155.0,0.00021912,2]
[319458875,1710786642807,-385.68944871,0.00021914,2]
[319458876,1710786642817,-200.25298156,0.00021914,2]
[319458877,1710786642827,-483.80311745,0.00021914,2]
[319458878,1710786642838,-163.87650296,0.00021914,2]
[319458879,1710786642847,-171.51177363,0.00021914,2]
[319458880,1710786642857,-1219.25286703,0.00021914,2]
[319458881,1710786642919,-171.069969,0.00021914,2]
[319458882,1710786642930,-782.11566625,0.00021914,2]
[319458883,1710786642942,-155.0,0.00021914,2]
[319458884,1710786642953,-354.68232971,0.00021914,2]
[319458885,1710786642963,-155.14587937,0.00021914,2]
[319458886,1710786642974,-174.73917289,0.00021914,2]
[319458887,1710786642985,-257.6482797,0.00021914,2]
[319458888,1710786642995,-409.57672825,0.00021914,2]
[319458889,1710786643006,-279.55354163,0.00021914,2]
[319458890,1710786643017,-12466.694966,0.00021914,2]
[319458891,1710786643031,-2489.6886415,0.00021914,2]
[319458892,1710786643041,-337.93299139,0.00021914,2]
[319458893,1710786643052,-69.70307004,0.00021914,2]
[319458894,1710786643195,-283.78415691,0.00021914,2]
[319458895,1710786643205,-1059.22417395,0.00021915,2]
[319458896,1710786643215,-294.19642187,0.00021915,2]
[319458897,1710786643224,-286.69437217,0.00021915,2]
[319458898,1710786643233,-1437.6605751,0.00021915,2]
[319458899,1710786643245,-353.48722695,0.00021915,2]
[319458900,1710786643290,-230.44693586,0.00021899,2]
[319458901,1710786643300,-812.37378797,0.00021915,2]
[319458902,1710786643309,-11322.29082039,0.00021915,2]
[319458903,1710786643318,-155.5639618,0.00021915,2]
[319458904,1710786643327,-3059.78849191,0.00021915,2]
[319458905,1710786643337,-997.67575371,0.00021915,2]
[319458906,1710786643347,-898.89536625,0.00021916,2]
[319458907,1710786643356,-500.0,0.00021917,2]
[319458908,1710786643365,-500.0,0.00021917,2]
[319458909,1710786643374,-500.0,0.00021917,2]
[319458910,1710786643384,-500.0,0.00021917,2]
[319458911,1710786643393,-500.0,0.00021917,2]
[319458912,1710786643402,-500.0,0.00021917,2]
[319458913,1710786643412,-500.0,0.00021917,2]
[319458914,1710786643421,-500.0,0.00021917,2]
[319458915,1710786643430,-500.0,0.00021917,2]
[319458916,1710786643440,-500.0,0.00021917,2]
[319458917,1710786643449,-500.0,0.00021917,2]
[319458918,1710786643458,-500.0,0.00021917,2]
[319458919,1710786643478,-504.96722378,0.00021917,2]
[319458920,1710786643489,-500.0,0.00021917,2]
[319458921,1710786643498,-500.0,0.00021917,2]
[319458922,1710786643508,-500.0,0.00021917,2]
[319458923,1710786643517,-500.0,0.00021917,2]
[319458924,1710786643528,-500.0,0.00021917,2]
[319458925,1710786643538,-500.0,0.00021917,2]
[319458926,1710786643547,-500.0,0.00021917,2]
[319458927,1710786643557,-500.0,0.00021917,2]
[319458928,1710786643567,-500.0,0.00021917,2]
[319458929,1710786643577,-497.0,0.00021917,2]
[319458930,1710786643586,-500.0,0.00021917,2]
[319458931,1710786643595,-500.0,0.00021917,2]
[319458932,1710786643605,-500.0,0.00021917,2]
[319458933,1710786643614,-500.0,0.00021917,2]
[319458934,1710786643624,-500.0,0.00021917,2]
[319458935,1710786643633,-500.0,0.00021917,2]
[319458936,1710786643642,-500.0,0.00021917,2]
[319458937,1710786643652,-571.11424914,0.00021917,2]
[319458938,1710786643661,-500.0,0.00021917,2]
[319458939,1710786643973,-500.0,0.00021917,2]
[319458940,1710786643983,-500.0,0.00021917,2]
[319458941,1710786643992,-500.0,0.00021917,2]
[319458942,1710786644001,-187.1634145,0.00021917,2]
[319458943,1710786644010,-177.18463114,0.00021917,2]
[319458944,1710786644020,-580.5,0.00021917,2]
[319458945,1710786644030,-2522.92,0.00021917,2]
[319458946,1710786644038,-500.0,0.00021917,2]
[319458947,1710786644047,-500.0,0.00021917,2]
[319458948,1710786644058,-500.0,0.00021917,2]
[319458949,1710786644067,-2307.81,0.00021917,2]
[319458950,1710786644077,-500.0,0.00021917,2]
[319458951,1710786644086,-500.0,0.00021917,2]
[319458952,1710786644100,-500.0,0.00021917,2]
[319458953,1710786644109,-500.0,0.00021917,2]
[319458954,1710786644118,-555.86,0.00021917,2]
[319458955,1710786644128,-500.0,0.00021917,2]
[319458956,1710786644137,-500.0,0.00021917,2]
[319458957,1710786644146,-747.64,0.00021917,2]
[319458958,1710786644155,-593.35600316,0.00021917,2]
[319458959,1710786644165,-500.0,0.00021917,2]
[319458960,1710786644174,-2666.76,0.00021917,2]
[319458961,1710786644183,-500.0,0.00021917,2]
[319458962,1710786644192,-500.0,0.00021917,2]
[319458963,1710786644201,-925.51,0.00021917,2]
[319458964,1710786644211,-589.11,0.00021917,2]
[319458965,1710786644221,-1147.13,0.00021917,2]
[319458966,1710786644236,-229.67672417,0.00021917,2]
[319458967,1710786644289,-332.98327583,0.00021917,2]
[319458968,1710786644298,-500.0,0.00021917,2]
[319458969,1710786644308,-1106.79762043,0.00021917,2]
[319458970,1710786644320,-990.06237957,0.00021917,2]
[319458971,1710786644330,-842.18,0.00021917,2]
[319458972,1710786644339,-500.0,0.00021917,2]
[319458973,1710786644349,-1541.16,0.00021917,2]
[319458974,1710786644358,-500.0,0.00021917,2]
[319458975,1710786644371,-500.0,0.00021917,2]
[319458976,1710786644381,-578.34,0.00021917,2]
[319458977,1710786644390,-500.0,0.00021917,2]
[319458978,1710786644399,-500.0,0.00021917,2]
[319458979,1710786644409,-501.7679279,0.00021917,2]
[319458980,1710786644418,-500.0,0.00021917,2]
[319458981,1710786644428,-1971.2,0.00021917,2]
[319458982,1710786644438,-891.0,0.00021917,2]
[319458983,1710786644447,-971.58,0.00021917,2]
[319458984,1710786644457,-500.0,0.00021917,2]
[319458985,1710786644466,-500.0,0.00021917,2]
[319458986,1710786644475,-500.0,0.00021917,2]
[319458987,1710786644485,-500.0,0.00021917,2]
[319458988,1710786644494,-500.0,0.00021917,2]
[319458989,1710786644503,-500.0,0.00021917,2]
[319458990,1710786644512,-2378.81,0.00021917,2]
[319458991,1710786644522,-500.0,0.00021917,2]
[319458992,1710786644531,-500.0,0.00021917,2]
[319458993,1710786644541,-500.0,0.00021917,2]
[319458994,1710786644551,-512.69,0.00021917,2]
[319458995,1710786644560,-587.69,0.00021917,2]
[319458996,1710786644570,-500.0,0.00021917,2]
[319458997,1710786644579,-657.87,0.00021917,2]
[319458998,1710786644588,-500.0,0.00021917,2]
[319458999,1710786644598,-500.0,0.00021917,2]
[319459000,1710786644607,-1599.42,0.00021917,2]
[319459001,1710786644616,-1444.26,0.00021917,2]
[319459002,1710786644626,-500.0,0.00021917,2]
[319459003,1710786644637,-500.0,0.00021917,2]
[319459004,1710786644646,-500.0,0.00021917,2]
[319459005,1710786644655,-1593.5,0.00021917,2]
[319459006,1710786644665,-500.0,0.00021917,2]
[319459007,1710786644674,-500.0,0.00021917,2]
[319459008,1710786644683,-500.0,0.00021917,2]
[319459009,1710786644695,-1344.42,0.00021917,2]
[319459010,1710786644704,-890.45,0.00021917,2]
[319459011,1710786644714,-500.0,0.00021917,2]
[319459012,1710786644724,-1058.29,0.00021917,2]
[319459013,1710786644733,-500.0,0.00021917,2]
[319459014,1710786644745,-1103.74,0.00021917,2]
[319459015,1710786644754,-500.0,0.00021917,2]
[319459016,1710786644764,-500.0,0.00021917,2]
[319459017,1710786644775,-500.0,0.00021917,2]
[319459018,1710786644785,-618.66,0.00021917,2]
[319459019,1710786644794,-712.84,0.00021917,2]
[319459020,1710786644803,-500.0,0.00021917,2]
[319459021,1710786644812,-710.09,0.00021917,2]
[319459022,1710786644822,-500.0,0.00021917,2]
[319459023,1710786644831,-500.0,0.00021917,2]
[319459024,1710786644842,-548.78,0.00021917,2]
[319459025,1710786644851,-500.0,0.00021917,2]
[319459026,1710786644860,-500.0,0.00021917,2]
[319459027,1710786644870,-500.0,0.00021917,2]
[319459028,1710786644879,-784.0,0.00021917,2]
[319459029,1710786644888,-500.0,0.00021917,2]
[319459030,1710786644898,-500.0,0.00021917,2]
[319459031,1710786644907,-500.0,0.00021917,2]
[319459032,1710786644917,-500.0,0.00021917,2]
[319459033,1710786644927,-571.77,0.00021917,2]
[319459034,1710786644936,-500.0,0.00021917,2]
[319459035,1710786644946,-500.0,0.00021917,2]
[319459036,1710786644955,-2137.55,0.00021917,2]
[319459037,1710786644965,-508.63,0.00021917,2]
[319459038,1710786644975,-500.0,0.00021917,2]
[319459039,1710786644985,-570.28,0.00021917,2]
[319459040,1710786644994,-500.0,0.00021917,2]
[319459041,1710786645004,-500.0,0.00021917,2]
[319459042,1710786645013,-2477.75,0.00021917,2]
[319459043,1710786645024,-646.69,0.00021917,2]
[319459044,1710786645034,-500.0,0.00021917,2]
[319459045,1710786645043,-500.0,0.00021917,2]
[319459046,1710786645052,-500.0,0.00021917,2]
[319459047,1710786645062,-500.55235449,0.00021917,2]
[319459048,1710786645071,-622.0,0.00021917,2]
[319459049,1710786645081,-500.0,0.00021917,2]
[319459050,1710786645091,-942.29,0.00021917,2]
[319459051,1710786645101,-500.0,0.00021917,2]
[319459052,1710786645110,-500.0,0.00021917,2]
[319459053,1710786645120,-500.0,0.00021917,2]
[319459054,1710786645130,-500.0,0.00021917,2]
[319459055,1710786645140,-500.0,0.00021917,2]
[319459056,1710786645149,-747.49,0.00021917,2]
[319459057,1710786645158,-500.0,0.00021917,2]
[319459058,1710786645168,-720.39,0.00021917,2]
[319459059,1710786645184,-1057.66,0.00021917,2]
[319459060,1710786645198,-595.1,0.00021917,2]
[319459061,1710786645208,-1109.1,0.00021917,2]
[319459062,1710786645218,-500.0,0.00021917,2]
[319459063,1710786645228,-2450.51,0.00021917,2]
[319459064,1710786645239,-500.0,0.00021917,2]
[319459065,1710786645249,-865.9,0.00021917,2]
[319459066,1710786645260,-1415.52,0.00021917,2]
[319459067,1710786645270,-765.14,0.00021917,2]
[319459068,1710786645282,-500.0,0.00021917,2]
[319459069,1710786645292,-1703.2,0.00021917,2]
[319459070,1710786645302,-1887.43,0.00021917,2]
[319459071,1710786645312,-1288.3,0.00021917,2]
[319459072,1710786645322,-500.0,0.00021917,2]
[319459073,1710786645332,-300.0,0.00021917,2]
[319459074,1710786645343,-1476.45,0.00021917,2]
[319459075,1710786645353,-1301.19,0.00021917,2]
[319459076,1710786645363,-579.6,0.00021917,2]
[319459077,1710786645373,-500.0,0.00021917,2]
[319459078,1710786645383,-500.0,0.00021917,2]
[319459079,1710786645393,-813.45,0.00021917,2]
[319459080,1710786645403,-500.0,0.00021917,2]
[319459081,1710786645413,-538.25,0.00021917,2]
[319459082,1710786645423,-1842.69,0.00021917,2]
[319459083,1710786645433,-670.05,0.00021917,2]
[319459084,1710786645443,-1057.07,0.00021917,2]
[319459085,1710786645453,-500.0,0.00021917,2]
[319459086,1710786645462,-500.0,0.00021917,2]
[319459087,1710786645473,-2006.62,0.00021917,2]
[319459088,1710786645483,-590.21331579,0.00021917,2]
[319459089,1710786645493,-500.0,0.00021917,2]
[319459090,1710786645503,-570.89,0.00021917,2]
[319459091,1710786645513,-500.0,0.00021917,2]
[319459092,1710786645524,-500.0,0.00021917,2]
[319459093,1710786645533,-500.0,0.00021917,2]
[319459094,1710786645542,-1104.41,0.00021917,2]
[319459095,1710786645552,-500.0,0.00021917,2]
[319459096,1710786645562,-771.16,0.00021917,2]
[319459097,1710786645571,-500.0,0.00021917,2]
[319459098,1710786645581,-527.02,0.00021917,2]
[319459099,1710786645591,-500.0,0.00021917,2]
[319459100,1710786645601,-500.0,0.00021917,2]
[319459101,1710786645610,-568.07,0.00021917,2]
[319459102,1710786645620,-454.85938445,0.00021917,2]
[319459103,1710786645648,-386.18061555,0.00021917,2]
[319459104,1710786645657,-125.30115525,0.00021917,2]
[319459105,1710786645688,-374.69884475,0.00021917,2]
[319459106,1710786645698,-23.3213617,0.00021917,2]
[319459116,1710786646707,-150.0,0.00021681,2]
[319459117,1710786646717,-155.01756816,0.00021816,2]
[319459118,1710786646728,-151.87,0.00021895,2]
[319459119,1710786646738,-166.09133163,0.00021898,2]
[319459120,1710786646753,-1151.01898568,0.00021898,2]
[319459121,1710786646763,-1883.30750935,0.00021898,2]
[319459122,1710786646777,-184.6669261,0.00021898,2]
[319459123,1710786646786,-746.1257008,0.00021898,2]
[319459124,1710786646795,-174.69769533,0.00021898,2]
[319459125,1710786646805,-248.16934754,0.00021898,2]
[319459126,1710786646815,-7177.02151288,0.00021899,5]
[319459127,1710786646826,-155.23516414,0.00021899,2]